fUST/lending_fUST_20251010
["ID","MTS","AMOUNT","RATE_DAILY","PERIOD"]
[390601953,1760101852232,-500.0,0.00017808,2]
[390601954,1760101852243,-500.0,0.00017808,2]
[390601955,1760101852252,-151.0,0.00017808,2]
[390601956,1760101852262,-151.0,0.00017808,2]
[390601957,1760101852271,-151.0,0.00017808,2]
[390601958,1760101852280,-151.0,0.00017808,2]
[390601959,1760101852289,-151.0,0.00017808,2]
[390601960,1760101852299,-154.856397,0.00017808,2]
[390601961,1760101852308,-500.0,0.00017808,2]
[390601962,1760101852317,-151.0,0.00017808,2]
[390601963,1760101852326,-151.0,0.00017808,2]
[390601964,1760101852335,-1115.81,0.00017808,2]
[390601965,1760101852344,-151.0,0.00017808,2]
[390601966,1760101852353,-500.0,0.00017808,2]
[390601967,1760101852363,-151.0,0.00017808,2]
[390601968,1760101852372,-151.0,0.00017808,2]
[390601969,1760101852381,-500.0,0.00017808,2]
[390601970,1760101852391,-500.0,0.00017808,2]
[390601971,1760101852400,-500.0,0.00017808,2]
[390601972,1760101852408,-1241.99,0.00017808,2]
[390601973,1760101852419,-4732.41,0.00017808,2]
[390601974,1760101852428,-500.0,0.00017808,2]
[390601975,1760101852437,-500.0,0.00017808,2]
[390601976,1760101852449,-500.0,0.00017808,2]
[390601977,1760101852590,-500.0,0.00017808,2]
[390601978,1760101852600,-500.0,0.00017808,2]
[390601979,1760101852609,-785.88,0.00017808,2]
[390601980,1760101852619,-500.0,0.00017808,2]
[390601981,1760101852629,-617.27,0.00017808,2]
[390601982,1760101852638,-500.0,0.00017808,2]
[390601983,1760101852648,-500.0,0.00017808,2]
[390601984,1760101852658,-1623.93,0.00017808,2]
[390601985,1760101852667,-500.0,0.00017808,2]
[390601986,1760101852676,-1499.8,0.00017808,2]
[390601987,1760101852686,-271.13867582,0.00017808,2]
[390601988,1760101852695,-2149.34,0.00017808,2]
[390601989,1760101852705,-4543.44,0.00017808,2]
[390601990,1760101852714,-620.98,0.00017808,2]
[390601991,1760101852723,-500.0,0.00017808,2]
[390601992,1760101852732,-610.21,0.00017808,2]
[390601993,1760101852742,-1015.27,0.00017808,2]
[390601994,1760101852751,-607.2,0.00017808,2]
[390601995,1760101852760,-605.98,0.00017808,2]
[390601996,1760101852770,-502.18,0.00017808,2]
[390601997,1760101852779,-963.28,0.00017808,2]
[390601998,1760101852788,-5962.37,0.00017808,2]
[390601999,1760101852799,-623.9,0.00017808,2]
[390602000,1760101852809,-1758.04,0.00017808,2]
[390602001,1760101852818,-876.34,0.00017808,2]
[390602002,1760101852827,-590.43,0.00017808,2]
[390602003,1760101852836,-500.0,0.00017808,2]
[390602004,1760101852845,-3645.93,0.00017808,2]
[390602005,1760101852855,-828.89,0.00017808,2]
[390602006,1760101852865,-664.61,0.00017808,2]
[390602007,1760101852874,-2593.3,0.00017808,2]
[390602008,1760101852883,-2867.32,0.00017808,2]
[390602009,1760101852893,-500.0,0.00017808,2]
[390602010,1760101852902,-500.0,0.00017808,2]
[390602011,1760101852911,-500.0,0.00017808,2]
[390602012,1760101852920,-500.0,0.00017808,2]
[390602013,1760101852929,-500.0,0.00017808,2]
[390602014,1760101852938,-1691.32,0.00017808,2]
[390602015,1760101852947,-658.5,0.00017808,2]
[390602016,1760101852956,-1036.19,0.00017808,2]
[390602017,1760101852965,-653.65,0.00017808,2]
[390602018,1760101852974,-500.0,0.00017808,2]
[390602019,1760101852984,-500.0,0.00017808,2]
[390602020,1760101852993,-500.0,0.00017808,2]
[390602021,1760101853002,-500.0,0.00017808,2]
[390602022,1760101853012,-1340.65,0.00017808,2]
[390602023,1760101853021,-1769.43,0.00017808,2]
[390602024,1760101853031,-500.0,0.00017808,2]
[390602025,1760101853040,-720.9,0.00017808,2]
[390602026,1760101853050,-201.93051172,0.00017808,2]
[390602027,1760101853060,-500.0,0.00017808,2]
[390602028,1760101853069,-637.06,0.00017808,2]
[390602029,1760101853078,-1916.59,0.00017808,2]
[390602030,1760101853088,-669.81,0.00017808,2]
[390602031,1760101853097,-2464.24,0.00017808,2]
[390602032,1760101853107,-800.32,0.00017808,2]
[390602033,1760101853118,-151.0,0.00017808,2]
[390602034,1760101853128,-151.0,0.00017808,2]
[390602035,1760101853137,-177.607044,0.00017808,2]
[390602036,1760101853147,-177.607044,0.00017808,2]
[390602037,1760101853156,-177.607044,0.00017808,2]
[390602038,1760101853166,-177.607044,0.00017808,2]
[390602039,1760101853175,-151.0,0.00017808,2]
[390602040,1760101853185,-500.0,0.00017808,2]
[390602041,1760101853194,-151.0,0.00017808,2]
[390602042,1760101853204,-500.0,0.00017808,2]
[390602043,1760101853214,-618.56,0.00017808,2]
[390602044,1760101853223,-752.93,0.00017808,2]
[390602045,1760101853233,-811.6,0.00017808,2]
[390602046,1760101853242,-825.33,0.00017808,2]
[390602047,1760101853252,-560.25,0.00017808,2]
[390602048,1760101853261,-754.04,0.00017808,2]
[390602049,1760101853271,-4195.0,0.00017808,2]
[390602050,1760101853280,-164.290987,0.00017808,2]
[390602051,1760101853289,-164.290987,0.00017808,2]
[390602052,1760101853298,-164.290987,0.00017808,2]
[390602053,1760101853307,-164.290987,0.00017808,2]
[390602054,1760101853317,-500.0,0.00017808,2]
[390602055,1760101853326,-525.73,0.00017808,2]
[390602056,1760101853336,-500.0,0.00017808,2]
[390602057,1760101853345,-281.553215,0.00017808,2]
[390602058,1760101853354,-517.73,0.00017808,2]
[390602059,1760101853364,-281.553215,0.00017808,2]
[390602060,1760101853373,-281.553215,0.00017808,2]
[390602061,1760101853382,-281.553215,0.00017808,2]
[390602062,1760101853391,-401.15176384,0.00017808,2]
[390602063,1760101853401,-1238.36,0.00017808,2]
[390602064,1760101853410,-1568.64,0.00017808,2]
[390602065,1760101853420,-1000.0,0.00017813,2]
[390602066,1760101853429,-505.20166861,0.00017813,2]
[390602067,1760101853440,-1000.0,0.00017813,2]
[390602068,1760101853450,-1000.0,0.00017813,2]
[390602069,1760101853460,-1000.0,0.00017813,2]
[390602070,1760101853469,-2200.0,0.00017843,2]
[390602071,1760101853479,-500.0,0.00017843,2]
[390602072,1760101853488,-1000.0,0.00017853,2]
[390602073,1760101853498,-1000.0,0.00017853,2]
[390602074,1760101853507,-500.86697932,0.00017853,2]
[390602075,1760101853516,-501.25382688,0.00017853,2]
[390602076,1760101853526,-1000.0,0.00017853,2]
[390602077,1760101853536,-151.0,0.00017853,2]
[390602078,1760101853545,-151.0,0.00017853,2]
[390602079,1760101853555,-244.097566,0.00017853,2]
[390602080,1760101853564,-1000.0,0.00017855,2]
[390602081,1760101853574,-942.0,0.00017863,2]
[390602082,1760101853582,-1500.0,0.00017868,2]
[390602083,1760101853591,-1500.0,0.00017868,2]
[390602084,1760101853602,-1245.81687951,0.00017868,2]
[390602085,1760101853612,-1003.6411007,0.00017868,2]
[390602086,1760101853621,-1500.0,0.00017868,2]
[390602087,1760101853632,-1500.0,0.00017868,2]
[390602088,1760101853643,-1500.0,0.00017868,2]
[390602089,1760101853653,-1500.0,0.00017868,2]
[390602090,1760101853663,-600.0,0.00017885,2]
[390602091,1760101853674,-942.0,0.00017917,2]
[390602092,1760101853684,-420.0,0.00017962,2]
[390602093,1760101853694,-293.014755,0.00017971,2]
[390602094,1760101853704,-293.014755,0.00017971,2]
[390602095,1760101853714,-293.014755,0.00017971,2]
[390602096,1760101853723,-293.014755,0.00017971,2]
[390602097,1760101853733,-151.0,0.00017971,2]
[390602098,1760101853742,-320.003172,0.00017971,2]
[390602099,1760101853752,-320.003172,0.00017971,2]
[390602100,1760101853761,-320.003172,0.00017971,2]
[390602101,1760101853770,-320.003172,0.00017971,2]
[390602102,1760101853779,-151.0,0.00017971,2]
[390602103,1760101853788,-151.0,0.00017971,2]
[390602104,1760101853798,-1003.02100515,0.00017971,2]
[390602105,1760101853807,-1000.0,0.00017971,2]
[390602106,1760101853816,-948.0,0.00017972,2]
[390602107,1760101853826,-415.8838355,0.00018,2]
[390602108,1760101853835,-361.18657561,0.00018,2]
[390602109,1760101853844,-184.9309052,0.00018,2]
[390602110,1760101853853,-227.40347427,0.00018,2]
[390602111,1760101853863,-213.00000001,0.00018,2]
[390602112,1760101853872,-1235.02362423,0.00018,2]
[390602113,1760101853883,-186.5,0.00018,2]
[390602114,1760101853893,-151.0,0.00018,2]
[390602115,1760101853902,-151.681857,0.00018,2]
[390602116,1760101853911,-151.0,0.00018,2]
[390602117,1760101853920,-2000.0,0.00018,2]
[390602118,1760101853929,-624.0,0.00018059,2]
[390602119,1760101853939,-3928.4449145,0.00018071,2]
[390602120,1760101853948,-151.0,0.00018071,2]
[390602121,1760101853957,-601.56279864,0.00018071,2]
[390602122,1760101853967,-484.08499044,0.00018074,2]
[390602123,1760101853976,-155.0,0.00018081,2]
[390602124,1760101853985,-500.0,0.00018082,2]
[390602125,1760101853995,-500.0,0.00018082,2]
[390602126,1760101854005,-1333.52,0.00018082,2]
[390602127,1760101854014,-567.2,0.00018082,2]
[390602128,1760101854024,-151.0,0.00018082,2]
[390602129,1760101854034,-151.0,0.00018082,2]
[390602130,1760101854043,-151.0,0.00018082,2]
[390602131,1760101854053,-262.23,0.00018082,2]
[390602132,1760101854062,-500.0,0.00018082,2]
[390602133,1760101854071,-500.0,0.00018082,2]
[390602134,1760101854081,-500.0,0.00018082,2]
[390602135,1760101854090,-500.0,0.00018082,2]
[390602136,1760101854099,-500.0,0.00018082,2]
[390602137,1760101854109,-151.0,0.00018082,2]
[390602138,1760101854119,-152.984232,0.00018082,2]
[390602139,1760101854128,-181.181145,0.00018082,2]
[390602140,1760101854138,-151.0,0.00018082,2]
[390602141,1760101854147,-252.55016283,0.00018082,2]
[390602142,1760101854157,-181.181145,0.00018082,2]
[390602143,1760101854166,-151.0,0.00018082,2]
[390602144,1760101854176,-181.181145,0.00018082,2]
[390602145,1760101854185,-181.181145,0.00018082,2]
[390602146,1760101854194,-701.17,0.00018082,2]
[390602147,1760101854204,-500.0,0.00018082,2]
[390602148,1760101854213,-151.0,0.00018082,2]
[390602149,1760101854223,-240.627137,0.00018082,2]
[390602150,1760101854232,-151.0,0.00018082,2]
[390602151,1760101854241,-500.0,0.00018082,2]
[390602152,1760101854250,-500.0,0.00018082,2]
[390602153,1760101854260,-597.8,0.00018082,2]
[390602154,1760101854269,-151.0,0.00018082,2]
[390602155,1760101854278,-263.57469437,0.00018082,2]
[390602156,1760101854287,-500.0,0.00018082,2]
[390602157,1760101854297,-500.0,0.00018082,2]
[390602158,1760101854306,-1141.37,0.00018082,2]
[390602159,1760101854315,-676.23,0.00018082,2]
[390602160,1760101854324,-500.0,0.00018082,2]
[390602161,1760101854333,-500.0,0.00018082,2]
[390602162,1760101854342,-500.0,0.00018082,2]
[390602163,1760101854351,-214.40794237,0.00018082,2]
[390602164,1760101854359,-1115.81,0.00018082,2]
[390602165,1760101854369,-500.0,0.00018082,2]
[390602166,1760101854377,-500.0,0.00018082,2]
[390602167,1760101854386,-500.0,0.00018082,2]
[390602168,1760101854395,-500.0,0.00018082,2]
[390602169,1760101854404,-1241.99,0.00018082,2]
[390602170,1760101854413,-4732.41,0.00018082,2]
[390602171,1760101854422,-480.0,0.00018082,2]
[390602172,1760101854430,-607.91700275,0.00018082,2]
[390602173,1760101854440,-500.0,0.00018082,2]
[390602174,1760101854451,-500.0,0.00018082,2]
[390602175,1760101854460,-785.88,0.00018082,2]
[390602176,1760101854469,-617.27,0.00018082,2]
[390602177,1760101854477,-152.031456,0.00018082,2]
[390602178,1760101854486,-500.0,0.00018082,2]
[390602179,1760101854495,-500.0,0.00018082,2]
[390602180,1760101854505,-1623.93,0.00018082,2]
[390602181,1760101854514,-151.0,0.00018082,2]
[390602182,1760101854523,-151.0,0.00018082,2]
[390602183,1760101854532,-185.618188,0.00018082,2]
[390602184,1760101854541,-500.0,0.00018082,2]
[390602185,1760101854550,-1499.8,0.00018082,2]
[390602186,1760101854559,-394.098633,0.00018082,2]
[390602187,1760101854567,-394.098633,0.00018082,2]
[390602188,1760101854576,-394.098633,0.00018082,2]
[390602189,1760101854585,-394.098633,0.00018082,2]
[390602190,1760101854593,-2149.34,0.00018082,2]
[390602191,1760101854602,-4543.44,0.00018082,2]
[390602192,1760101854611,-620.98,0.00018082,2]
[390602193,1760101854620,-500.0,0.00018082,2]
[390602194,1760101854629,-1015.27,0.00018082,2]
[390602195,1760101854637,-610.21,0.00018082,2]
[390602196,1760101854646,-607.2,0.00018082,2]
[390602197,1760101854655,-605.98,0.00018082,2]
[390602198,1760101854664,-502.18,0.00018082,2]
[390602199,1760101854673,-963.28,0.00018082,2]
[390602200,1760101854683,-5962.37,0.00018082,2]
[390602201,1760101854692,-623.9,0.00018082,2]
[390602202,1760101854701,-1758.04,0.00018082,2]
[390602203,1760101854710,-876.34,0.00018082,2]
[390602204,1760101854719,-590.43,0.00018082,2]
[390602205,1760101854728,-3645.93,0.00018082,2]
[390602206,1760101854737,-828.89,0.00018082,2]
[390602207,1760101854746,-664.61,0.00018082,2]
[390602208,1760101854755,-1192.88932913,0.00018082,2]
[390602209,1760101855060,-500.0,0.00016438,2]
[390602210,1760101855070,-365.56170626,0.00016712,2]
[390602211,1760101855079,-1400.41067087,0.00018082,2]
[390602212,1760101855088,-2867.32,0.00018082,2]
[390602213,1760101855097,-527.73815032,0.00018082,2]
[390602214,1760101855107,-500.0,0.00018082,2]
[390602215,1760101855116,-593.8006395,0.00018082,2]
[390602216,1760101855125,-500.0,0.00018082,2]
[390602217,1760101855139,-500.0,0.00018082,2]
[390602218,1760101855148,-1691.32,0.00018082,2]
[390602219,1760101855157,-658.5,0.00018082,2]
[390602220,1760101855167,-1036.19,0.00018082,2]
[390602221,1760101855176,-653.65,0.00018082,2]
[390602222,1760101855185,-466.92985145,0.00018082,2]
[390602223,1760101855195,-500.0,0.00018082,2]
[390602224,1760101855204,-500.0,0.00018082,2]
[390602225,1760101855213,-325.04163219,0.00018082,2]
[390602226,1760101855223,-1340.65,0.00018082,2]
[390602227,1760101855232,-1769.43,0.00018082,2]
[390602228,1760101855241,-500.0,0.00018082,2]
[390602229,1760101855250,-720.9,0.00018082,2]
[390602230,1760101855259,-500.0,0.00018082,2]
[390602231,1760101855268,-637.06,0.00018082,2]
[390602232,1760101855278,-1916.59,0.00018082,2]
[390602233,1760101855287,-669.81,0.00018082,2]
[390602234,1760101855455,-2464.24,0.00018082,2]
[390602235,1760101855465,-800.32,0.00018082,2]
[390602236,1760101855475,-500.0,0.00018082,2]
[390602237,1760101855485,-500.0,0.00018082,2]
[390602238,1760101855495,-618.56,0.00018082,2]
[390602239,1760101855504,-752.93,0.00018082,2]
[390602240,1760101855516,-811.6,0.00018082,2]
[390602241,1760101855525,-825.33,0.00018082,2]
[390602242,1760101855535,-560.25,0.00018082,2]
[390602243,1760101855544,-754.04,0.00018082,2]
[390602244,1760101855554,-500.0,0.00018082,2]
[390602245,1760101855563,-525.73,0.00018082,2]
[390602246,1760101855572,-500.0,0.00018082,2]
[390602247,1760101855582,-517.73,0.00018082,2]
[390602248,1760101855591,-1238.36,0.00018082,2]
[390602249,1760101855601,-1568.64,0.00018082,2]
[390602250,1760101855610,-201.61,0.000181,2]
[390602251,1760101855619,-4518.62,0.00018138,2]
[390602252,1760101855629,-151.0,0.00018192,2]
[390602253,1760101855639,-151.0,0.00018192,2]
[390602254,1760101855647,-415.8838355,0.000182,2]
[390602255,1760101855657,-361.18657561,0.000182,2]
[390602256,1760101855666,-184.9309052,0.000182,2]
[390602257,1760101855677,-227.40347427,0.000182,2]
[390602258,1760101855686,-1235.02362423,0.000182,2]
[390602259,1760101855695,-186.5,0.000182,2]
[390602260,1760101855704,-151.0,0.000182,2]
[390602261,1760101855716,-151.0,0.000182,2]
[390602262,1760101855726,-151.0,0.000182,2]
[390602263,1760101855735,-151.0,0.000182,2]
[390602264,1760101855744,-151.0,0.000182,2]
[390602265,1760101855753,-243.950688,0.000182,2]
[390602266,1760101855762,-151.0,0.000182,2]
[390602267,1760101855771,-151.0,0.000182,2]
[390602268,1760101855780,-177.41767855,0.00018256,2]
[390602269,1760101855789,-624.0,0.00018266,2]
[390602270,1760101855799,-402.6664121,0.0001829,2]
[390602271,1760101855807,-583.7169542,0.0001829,2]
[390602272,1760101855817,-379.2467022,0.0001829,2]
[390602273,1760101855826,-624.0,0.00018335,2]
[390602274,1760101855836,-500.0,0.00018356,2]
[390602275,1760101855845,-500.0,0.00018356,2]
[390602276,1760101855854,-1333.52,0.00018356,2]
[390602277,1760101855864,-567.2,0.00018356,2]
[390602278,1760101855873,-500.0,0.00018356,2]
[390602279,1760101855883,-151.0,0.00018356,2]
[390602280,1760101855893,-495.24,0.00018356,2]
[390602281,1760101855901,-500.0,0.00018356,2]
[390602282,1760101855910,-604.84623791,0.00018356,2]
[390602283,1760101855920,-500.0,0.00018356,2]
[390602284,1760101855930,-701.17,0.00018356,2]
[390602285,1760101855940,-500.0,0.00018356,2]
[390602286,1760101855949,-500.0,0.00018356,2]
[390602287,1760101855959,-500.0,0.00018356,2]
[390602288,1760101855968,-597.8,0.00018356,2]
[390602289,1760101855977,-500.0,0.00018356,2]
[390602290,1760101855987,-500.0,0.00018356,2]
[390602291,1760101855996,-1141.37,0.00018356,2]
[390602292,1760101856005,-676.23,0.00018356,2]
[390602293,1760101856014,-500.0,0.00018356,2]
[390602294,1760101856026,-500.0,0.00018356,2]
[390602295,1760101856039,-500.0,0.00018356,2]
[390602296,1760101856049,-1115.81,0.00018356,2]
[390602297,1760101856060,-500.0,0.00018356,2]
[390602298,1760101856070,-500.0,0.00018356,2]
[390602299,1760101856079,-500.0,0.00018356,2]
[390602300,1760101856088,-500.0,0.00018356,2]
[390602301,1760101856098,-1241.99,0.00018356,2]
[390602302,1760101856108,-4732.41,0.00018356,2]
[390602303,1760101856118,-500.0,0.00018356,2]
[390602304,1760101856127,-500.0,0.00018356,2]
[390602305,1760101856137,-785.88,0.00018356,2]
[390602306,1760101856146,-617.27,0.00018356,2]
[390602307,1760101856155,-500.0,0.00018356,2]
[390602308,1760101856165,-500.0,0.00018356,2]
[390602309,1760101856174,-1623.93,0.00018356,2]
[390602310,1760101856183,-500.0,0.00018356,2]
[390602311,1760101856193,-1499.8,0.00018356,2]
[390602312,1760101856202,-151.0,0.00018356,2]
[390602313,1760101856211,-2149.34,0.00018356,2]
[390602314,1760101856221,-4543.44,0.00018356,2]
[390602315,1760101856231,-620.98,0.00018356,2]
[390602316,1760101856240,-500.0,0.00018356,2]
[390602317,1760101856249,-610.21,0.00018356,2]
[390602318,1760101856261,-1015.27,0.00018356,2]
[390602319,1760101856270,-607.2,0.00018356,2]
[390602320,1760101856279,-605.98,0.00018356,2]
[390602321,1760101856288,-502.18,0.00018356,2]
[390602322,1760101856297,-963.28,0.00018356,2]
[390602323,1760101856307,-5962.37,0.00018356,2]
[390602324,1760101856316,-623.9,0.00018356,2]
[390602325,1760101856326,-1758.04,0.00018356,2]
[390602326,1760101856335,-876.34,0.00018356,2]
[390602327,1760101856344,-590.43,0.00018356,2]
[390602328,1760101856354,-3645.93,0.00018356,2]
[390602329,1760101856363,-293.014755,0.00018356,2]
[390602330,1760101856372,-293.014755,0.00018356,2]
[390602331,1760101856382,-828.89,0.00018356,2]
[390602332,1760101856391,-293.014755,0.00018356,2]
[390602333,1760101856401,-664.61,0.00018356,2]
[390602334,1760101856410,-2593.3,0.00018356,2]
[390602335,1760101856419,-293.014755,0.00018356,2]
[390602336,1760101856429,-151.0,0.00018356,2]
[390602337,1760101856442,-2867.32,0.00018356,2]
[390602338,1760101856452,-500.0,0.00018356,2]
[390602339,1760101856463,-500.0,0.00018356,2]
[390602340,1760101856473,-500.0,0.00018356,2]
[390602341,1760101856488,-1691.32,0.00018356,2]
[390602342,1760101856498,-320.003172,0.00018356,2]
[390602343,1760101856508,-658.5,0.00018356,2]
[390602344,1760101856523,-320.003172,0.00018356,2]
[390602345,1760101856533,-1036.19,0.00018356,2]
[390602346,1760101856544,-320.003172,0.00018356,2]
[390602347,1760101856554,-320.003172,0.00018356,2]
[390602348,1760101856564,-653.65,0.00018356,2]
[390602349,1760101856574,-500.0,0.00018356,2]
[390602350,1760101856583,-500.0,0.00018356,2]
[390602351,1760101856593,-1340.65,0.00018356,2]
[390602352,1760101856602,-1769.43,0.00018356,2]
[390602353,1760101856612,-720.9,0.00018356,2]
[390602354,1760101856622,-500.0,0.00018356,2]
[390602355,1760101856631,-637.06,0.00018356,2]
[390602356,1760101856641,-1916.59,0.00018356,2]
[390602357,1760101856650,-669.81,0.00018356,2]
[390602358,1760101856660,-232.335434,0.00018356,2]
[390602359,1760101856669,-2464.24,0.00018356,2]
[390602360,1760101856679,-800.32,0.00018356,2]
[390602361,1760101856689,-151.0,0.00018356,2]
[390602362,1760101856699,-177.607044,0.00018356,2]
[390602363,1760101856708,-177.607044,0.00018356,2]
[390602364,1760101856718,-177.607044,0.00018356,2]
[390602365,1760101856728,-177.607044,0.00018356,2]
[390602366,1760101856738,-151.0,0.00018356,2]
[390602367,1760101856747,-500.0,0.00018356,2]
[390602368,1760101856759,-168.374148,0.00018356,2]
[390602369,1760101856769,-500.0,0.00018356,2]
[390602370,1760101856778,-618.56,0.00018356,2]
[390602371,1760101856789,-752.93,0.00018356,2]
[390602372,1760101856798,-811.6,0.00018356,2]
[390602373,1760101856809,-825.33,0.00018356,2]
[390602374,1760101856819,-560.25,0.00018356,2]
[390602375,1760101856828,-754.04,0.00018356,2]
[390602376,1760101856839,-164.290987,0.00018356,2]
[390602377,1760101856848,-164.290987,0.00018356,2]
[390602378,1760101856857,-164.290987,0.00018356,2]
[390602379,1760101856872,-164.290987,0.00018356,2]
[390602380,1760101856886,-500.0,0.00018356,2]
[390602381,1760101856895,-525.73,0.00018356,2]
[390602382,1760101856904,-500.0,0.00018356,2]
[390602383,1760101856913,-281.553215,0.00018356,2]
[390602384,1760101856923,-517.73,0.00018356,2]
[390602385,1760101856933,-281.553215,0.00018356,2]
[390602386,1760101856942,-281.553215,0.00018356,2]
[390602387,1760101856952,-281.553215,0.00018356,2]
[390602388,1760101856961,-1238.36,0.00018356,2]
[390602389,1760101856970,-1568.64,0.00018356,2]
[390602390,1760101856980,-911.21878954,0.00018361,2]
[390602391,1760101856989,-415.83126983,0.00018361,2]
[390602392,1760101856998,-1500.0,0.00018361,2]
[390602393,1760101857007,-624.0,0.00018362,2]
[390602394,1760101857017,-1463.82071191,0.0001838,2]
[390602395,1760101857026,-415.8838355,0.000184,2]
[390602396,1760101857036,-361.18657561,0.000184,2]
[390602397,1760101857045,-184.9309052,0.000184,2]
[390602398,1760101857056,-1235.02362423,0.000184,2]
[390602399,1760101857065,-517.89405405,0.00018401,2]
[390602400,1760101857075,-1501.368229,0.00018401,2]
[390602401,1760101857084,-1500.0,0.00018401,2]
[390602402,1760101857094,-151.0,0.00018401,2]
[390602403,1760101857103,-151.0,0.00018401,2]
[390602404,1760101857113,-312.41407827,0.00018403,2]
[390602405,1760101857122,-151.0,0.00018416,2]
[390602406,1760101857131,-151.0,0.00018416,2]
[390602407,1760101857141,-394.098633,0.00018416,2]
[390602408,1760101857150,-394.098633,0.00018416,2]
[390602409,1760101857159,-394.098633,0.00018416,2]
[390602410,1760101857168,-394.098633,0.00018416,2]
[390602411,1760101857177,-2000.0,0.00018416,2]
[390602412,1760101857186,-2000.0,0.00018416,2]
[390602413,1760101857195,-2000.0,0.00018416,2]
[390602414,1760101857204,-2000.0,0.00018416,2]
[390602415,1760101857213,-2000.0,0.00018416,2]
[390602416,1760101857222,-2000.0,0.00018416,2]
[390602417,1760101857232,-800.0,0.00018429,2]
[390602418,1760101857241,-720.0,0.00018442,2]
[390602419,1760101857251,-624.0,0.00018447,2]
[390602420,1760101857260,-250.0,0.00018449,2]
[390602421,1760101857269,-415.8838355,0.000185,2]
[390602422,1760101857278,-361.18657561,0.000185,2]
[390602423,1760101857287,-184.9309052,0.000185,2]
[390602424,1760101857297,-1235.02362423,0.000185,2]
[390602425,1760101857307,-151.0,0.000185,2]
[390602426,1760101857316,-820.0,0.000185,4]
[390602427,1760101857325,-1000.0,0.00018537,2]
[390602428,1760101857334,-1000.0,0.00018537,2]
[390602429,1760101857343,-678.5151,0.00018537,2]
[390602430,1760101857352,-160.0,0.00018544,2]
[390602431,1760101857361,-154.020421,0.000186,2]
[390602432,1760101857370,-624.0,0.00018622,2]
[390602433,1760101857380,-500.0,0.0001863,2]
[390602434,1760101857389,-500.0,0.0001863,2]
[390602435,1760101857398,-500.0,0.0001863,2]
[390602436,1760101857407,-1333.52,0.0001863,2]
[390602437,1760101857417,-567.2,0.0001863,2]
[390602438,1760101857426,-152.275113,0.0001863,2]
[390602439,1760101857435,-151.0,0.0001863,2]
[390602440,1760101857448,-471.8400003,0.0001863,2]
[390602441,1760101857457,-1887.36000122,0.0001863,2]
[390602442,1760101857466,-4242.31344274,0.0001863,2]
[390602443,1760101857475,-500.0,0.0001863,2]
[390602444,1760101857484,-701.77566692,0.0001863,2]
[390602445,1760101857494,-2804.29556503,0.0001863,2]
[390602446,1760101857503,-500.0,0.0001863,2]
[390602447,1760101857512,-500.0,0.0001863,2]
[390602448,1760101857522,-151.0,0.0001863,2]
[390602449,1760101857531,-181.181145,0.0001863,2]
[390602450,1760101857540,-151.0,0.0001863,2]
[390602451,1760101857550,-181.181145,0.0001863,2]
[390602452,1760101857559,-151.0,0.0001863,2]